bitfinex/quotes_ETHUSD_20241215
["timestamp","ask_amount","ask_price","bid_price","bid_amount"]
[1734301488753,0.25,3889.7,3889.5,0.08031738]
[1734301488984,0.25,3889.7,3889.6,0.08031738]
[1734301489369,0.25,3889.7,3888.8,0.51210448]
[1734301489567,0.25,3889.3,3888.1,3.0]
[1734301489764,0.25,3889.1,3888.3,3.0]
[1734301490060,0.25,3889.1,3888.4,0.0803237]
[1734301490279,0.25,3889.1,3888.5,0.60420484]
[1734301490490,0.25,3889.1,3888.6,0.0803237]
[1734301490762,0.25,3888.9,3888.7,0.0803237]
[1734301491070,0.25,3888.9,3888.8,0.0803237]
[1734301492158,0.25,3888.9,3888.4,0.50217918]
[1734301492457,0.25,3888.9,3888.5,0.08033012]
[1734301492659,0.25,3888.9,3888.6,0.08033012]
[1734301492857,0.25,3888.9,3888.7,0.08033012]
[1734301493156,0.25,3888.9,3888.8,0.08033012]
[1734301496499,0.532138,3888.9,3888.8,0.08033012]
[1734301497265,2.57173,3888.5,3887.3,0.81]
[1734301497501,1.06857337,3888.0,3886.5,0.3481]
[1734301497813,2.19955223,3887.9,3886.6,0.57138547]
[1734301498011,0.87982089,3887.8,3886.6,3.14429547]
[1734301498217,1.06857337,3888.0,3886.6,0.57138547]
[1734301498364,1.06857337,3888.4,3887.8,2.57211]
[1734301498561,1.06857337,3888.7,3887.7,0.50543947]
[1734301498876,1.06857337,3888.8,3887.7,3.50543947]
[1734301499093,0.88472143,3888.7,3887.8,0.87314041]
[1734301499323,0.25,3888.6,3887.7,0.50543947]
[1734301500790,0.88592173,3888.5,3887.7,0.50543947]
[1734301501039,1.31857337,3888.6,3887.7,0.50543947]
[1734301501179,0.25,3888.4,3887.7,0.50543947]
[1734301501384,0.25,3888.2,3887.7,0.50543947]
[1734301501615,4.88188787,3888.1,3887.7,0.50543947]
[1734301501966,1.06857337,3887.8,3887.7,0.50543947]
[1734301502117,3.28584089,3887.8,3887.7,0.50543947]
[1734301502465,3.29008203,3887.8,3887.7,0.50543947]
[1734301502797,3.99364316,3887.8,3887.1,0.8123]
[1734301502963,1.07414036,3887.6,3887.1,0.8123]
[1734301503259,0.88817661,3887.5,3887.1,0.8123]
[1734301503463,1.07414036,3887.6,3887.2,3.262]
[1734301503772,1.07414036,3887.6,3887.1,0.8123]
[1734301503773,0.88919299,3887.5,3887.4,6.64930222]
[1734301503977,0.88919299,3887.5,3887.4,3.52689222]
[1734301504112,0.88919299,3887.5,3887.4,0.52689222]
[1734301504318,0.88919299,3887.5,3887.4,1.07689222]
[1734301504817,0.88914908,3887.5,3887.4,0.52689222]
[1734301505329,2.22289486,3887.5,3887.4,0.52689222]
[1734301505532,0.88914908,3887.5,3887.4,0.52689222]
[1734301506033,2.22292886,3887.5,3887.4,0.52689222]
[1734301506233,3.29706922,3887.5,3887.4,0.52689222]
[1734301507045,3.29706922,3887.5,3887.1,3.0]
[1734301507046,2.22292886,3887.5,3887.1,3.0]
[1734301507253,3.2983528,3887.4,3887.1,3.0]
[1734301507568,0.88927123,3887.3,3887.0,3.0]
[1734301507865,1.07542394,3887.5,3887.2,0.50437062]
[1734301508070,3.29860029,3887.4,3887.2,0.50437062]
[1734301508256,3.29860029,3887.3,3887.2,0.50437062]
[1734301508426,2.22317635,3887.3,3887.2,0.50437062]
[1734301508626,3.29866122,3887.3,3887.2,0.50437062]
[1734301508968,2.22317635,3887.3,3887.2,0.50437062]
[1734301509138,3.2986732,3887.3,3887.2,0.50437062]
[1734301509522,0.25,3887.5,3887.2,0.58473151]
[1734301509761,0.88918668,3887.4,3887.3,0.08036089]
[1734301509962,3.29850421,3887.4,3887.3,0.08036089]
[1734301510162,2.22300736,3887.4,3887.3,0.08036089]
[1734301510369,3.83424906,3887.4,3887.3,0.08036089]
[1734301510546,3.83424906,3887.4,3886.8,0.00586029]
[1734301510752,2.22300736,3887.3,3886.9,0.08036561]
[1734301511017,2.22300736,3887.3,3886.8,0.00586029]
[1734301511018,1.07527937,3887.4,3887.0,0.08036561]
[1734301511221,2.22279095,3887.3,3887.1,0.08036561]
[1734301511462,1.07527937,3887.4,3886.8,0.00586029]
[1734301511623,0.25,3887.1,3886.9,0.08036531]
[1734301511822,0.25,3887.1,3886.8,0.00586029]
[1734301511823,0.25,3886.9,3886.8,0.00586029]
[1734301515077,1.07527937,3887.6,3886.8,0.00586029]
[1734301515078,0.25,3887.5,3886.8,0.00586029]
[1734301515369,1.07527937,3887.9,3887.1,3.0]
[1734301515570,0.25,3887.8,3887.1,3.0]
[1734301515942,1.32527937,3888.3,3887.1,0.55785103]
[1734301516277,1.32527937,3888.3,3887.4,3.0]
[1734301516278,0.25,3888.3,3887.4,3.0]
[1734301516482,0.25,3888.3,3887.6,2.57227]
[1734301516828,0.25,3888.3,3887.2,0.7781]
[1734301516829,0.25,3888.3,3887.7,2.57221]
[1734301517277,0.25,3888.3,3887.9,0.50423927]
[1734301525708,0.25,3888.0,3887.4,3.0]
[1734301525854,0.25,3888.0,3887.5,0.08034595]
[1734301526210,0.25,3888.0,3887.6,0.08034595]
[1734301526357,0.25,3888.0,3887.7,0.58494867]
[1734301526556,0.25,3888.0,3887.8,0.08034595]
[1734301526802,0.25,3888.0,3887.2,0.7781]
[1734301526987,0.25,3888.0,3887.3,0.08034953]
[1734301527190,0.25,3888.0,3887.4,0.08034953]
[1734301527377,0.25,3888.0,3887.5,0.08034953]
[1734301527705,0.25,3888.0,3887.6,0.08034953]
[1734301527908,0.25,3888.0,3887.7,0.08034953]
[1734301528203,0.25,3888.0,3887.5,0.50888465]
[1734301528403,0.25,3888.0,3887.6,0.08034895]
[1734301528698,0.25,3888.0,3887.7,0.08034895]
[1734301528904,0.25,3888.0,3887.5,0.50888465]
[1734301528905,0.25,3888.0,3887.8,0.08034895]
[1734301529062,0.25,3888.0,3887.5,0.50888465]
[1734301529262,0.25,3888.0,3887.6,0.0803488]
[1734301529503,0.25,3888.0,3887.7,0.0803488]
[1734301529664,0.25,3888.0,3887.8,0.0803488]
[1734301529863,0.25,3888.0,3887.5,0.50888465]
[1734301530289,0.25,3888.0,3887.6,0.08034876]
[1734301530458,0.25,3888.0,3887.7,0.08034876]
[1734301530671,0.25,3888.0,3887.8,0.08034876]
[1734301530909,0.25,3888.0,3887.5,0.50888465]
[1734301531063,0.25,3888.0,3887.6,0.0803488]
[1734301531264,0.25,3888.0,3887.7,0.0803488]
[1734301531560,0.25,3888.0,3887.8,0.0803488]
[1734301531789,0.25,3887.4,3886.9,3.0]
[1734301532005,0.25,3887.4,3887.0,0.60055394]
[1734301532224,0.25,3887.4,3886.8,0.00586029]
[1734301532529,0.8018,3887.9,3886.8,0.00586029]
[1734301532530,0.25,3887.2,3886.9,0.50914176]
[1734301533793,1.07527937,3888.1,3887.0,0.55]
[1734301534029,0.25,3888.2,3887.5,2.57234]
[1734301534384,1.07527937,3888.6,3888.1,2.57192]
[1734301534586,0.25,3888.9,3887.9,0.55]
[1734301534821,0.25,3888.9,3888.5,2.57164]
[1734301538284,0.25,3888.9,3888.5,3.0926461]
[1734301539987,0.25,3888.9,3888.6,2.5716]
[1734301540295,0.25,3888.9,3888.7,2.57154]
[1734301543799,0.24690321,3888.9,3888.7,2.57154]
[1734301545130,0.24690321,3888.9,3888.8,2.57148]
[1734301547785,0.24690321,3888.9,3888.5,0.5210061]
[1734301548044,0.24690321,3888.9,3888.8,2.57148]
[1734301549930,0.24690321,3888.9,3888.7,2.57153]
[1734301550723,0.24690321,3888.2,3888.0,2.57201]
[1734301551033,0.24690321,3888.2,3887.4,3.90481397]
[1734301551034,0.24690321,3888.0,3887.9,5.57208]
[1734301551239,0.24690321,3888.0,3887.9,2.57208]
[1734301552532,3.90587129,3889.1,3887.4,5.829607]
[1734301552533,1.32218258,3888.8,3887.8,2.57214]
[1734301552842,0.24690321,3888.8,3888.7,2.57155]
[1734301554693,9.37e-06,3889.9,3889.3,3.55]
[1734301554894,2.68753681,3890.4,3889.3,3.55]
[1734301554895,0.24690321,3890.3,3890.2,2.57056]
[1734301555194,2.3791417,3890.6,3890.4,2.57042]
[1734301555195,0.24690321,3890.5,3890.4,2.57042]
[1734301555446,0.24690321,3890.5,3889.6,0.7943]
[1734301555447,0.005,3890.8,3890.7,2.57023]
[1734301555797,0.24690321,3890.2,3890.0,2.57065]
[1734301557122,0.24690321,3890.2,3889.7,0.55]
[1734301557294,0.24690321,3890.2,3890.0,2.57065]
[1734301558208,0.005,3890.8,3890.0,0.312065]
[1734301558423,0.24690321,3890.5,3890.4,2.5704]
[1734301558643,0.005,3890.8,3889.7,1.07439193]
[1734301558644,0.24690321,3890.3,3889.7,1.07439193]
[1734301558842,0.24690321,3890.3,3890.2,2.57056]
[1734301561250,0.24690321,3890.3,3889.7,3.64526193]
[1734301561398,0.24690321,3890.3,3890.1,2.5706]
[1734301562701,0.24690321,3890.3,3889.8,0.44395619]
[1734301562899,0.24690321,3890.3,3889.9,2.57076]
[1734301563205,0.24690321,3890.3,3889.8,0.44395619]
[1734301563444,0.24690321,3890.3,3890.1,2.57061]
[1734301563796,0.24690321,3889.9,3889.7,0.52439193]
[1734301564000,0.24690321,3889.5,3889.1,3.0]
[1734301564270,0.24690321,3889.5,3888.6,0.8154]
[1734301564271,0.24690321,3889.2,3888.6,0.8154]
[1734301564807,0.24690321,3889.2,3888.7,2.57155]
[1734301565007,0.24690321,3889.2,3888.8,0.338695]
[1734301565241,0.24690321,3888.9,3888.5,2.57162]
[1734301565440,0.24690321,3888.9,3888.2,2.15353923]
[1734301565739,0.24690321,3889.4,3888.5,2.57167]
[1734301565912,0.24690321,3889.4,3888.6,2.15353923]
[1734301566114,0.24690321,3889.6,3889.5,2.57102]
[1734301566732,0.24690321,3889.1,3888.7,0.55]
[1734301566939,0.24690321,3889.1,3889.0,2.57135]
[1734301568006,0.24690321,3889.4,3889.2,2.57118]
[1734301569051,0.24690321,3889.1,3888.9,2.57138]
[1734301569751,0.24690321,3889.1,3888.5,0.51803085]
[1734301569957,0.24690321,3888.7,3888.6,2.57156]
[1734301570859,0.24690321,3888.9,3888.8,2.57148]
[1734301571062,0.24690321,3888.9,3888.8,2.828628]
[1734301572481,0.24690321,3888.6,3888.5,2.57163]
[1734301574542,3.64339785,3889.8,3888.0,2.15353923]
[1734301574543,0.24690321,3888.4,3888.0,2.57197]
[1734301574797,0.24690321,3888.4,3887.2,8.89]
[1734301574799,0.24690321,3887.7,3887.0,0.8227]
[1734301575091,2.93053923,3888.9,3887.3,2.57245]
[1734301575092,0.24690321,3887.5,3887.3,2.57245]
[1734301575691,0.24690321,3887.2,3887.0,3.91538001]
[1734301575851,0.24690321,3886.9,3886.8,2.57865029]
[1734301576043,0.24690321,3886.9,3886.8,0.00586029]
[1734301576297,0.24690321,3886.9,3886.5,2.92107]
[1734301577097,0.24690321,3886.9,3886.5,0.3481]
[1734301579046,0.24690321,3886.6,3886.5,0.3481]
[1734301580894,1.05880321,3886.6,3886.5,0.3481]
[1734301581760,1.05880321,3886.6,3885.0,0.12556247]
[1734301581761,3.22610708,3887.2,3886.9,5.25664679]
[1734301582011,2.21671806,3887.1,3886.9,3.35065634]
[1734301582194,0.47673562,3887.0,3886.9,3.35065634]
[1734301582535,1.54930347,3887.0,3886.9,3.35065634]
[1734301582741,3.7646485,3887.0,3886.9,3.35065634]
[1734301583246,2.69208065,3887.0,3886.9,3.35065634]
[1734301583605,2.72424504,3887.0,3886.9,3.35065634]
[1734301584011,3.24486992,3887.0,3886.9,3.35065634]
[1734301584207,1.91570382,3887.0,3886.9,3.35065634]
[1734301584609,7.25730234,3887.0,3886.9,6.39e-06]
[1734301584810,7.25730234,3887.0,3884.6,0.053772]
[1734301584811,0.25,3886.5,3884.6,0.053772]
[1734301585013,2.15353923,3885.5,3884.6,0.053772]
[1734301585308,0.03217722,3885.4,3884.6,0.053772]
[1734301585657,2.57385,3885.3,3884.6,0.053772]
[1734301585959,3.36478931,3885.2,3884.6,0.053772]
[1734301586754,0.79087931,3885.2,3884.6,0.053772]
[1734301587713,3.36476931,3885.2,3884.6,0.053772]
[1734301588518,4.72747923,3885.1,3884.6,0.053772]
[1734301588718,0.03218239,3885.0,3884.6,0.053772]
[1734301588942,0.43422308,3885.0,3884.6,0.053772]
[1734301590138,2.91223923,3884.7,3884.6,0.053772]
[1734301590315,2.94442529,3884.7,3884.6,0.053772]
[1734301591821,0.25,3884.4,3881.9,0.8161]
[1734301592021,2.15353923,3883.1,3882.2,2.57583]
[1734301592218,0.03219619,3883.0,3882.0,2.57596]
[1734301593131,0.03219619,3883.0,3881.9,0.8161]
[1734301593132,0.03219619,3883.0,3881.7,0.00586799]
[1734301593329,0.82569737,3883.0,3881.7,0.00586799]
[1734301593553,0.7935,3883.0,3881.7,0.00586799]
[1734301593725,0.7935,3883.0,3882.0,2.57597]
[1734301594059,0.7935,3883.0,3882.1,0.257597]
[1734301594468,0.7935,3883.0,3881.8,2.57607]
[1734301594823,0.03219805,3882.9,3881.7,2.58203799]
[1734301595443,0.03219805,3882.9,3881.9,2.57602]
[1734301595651,0.03219805,3882.9,3881.7,0.00586799]
[1734301595865,0.03219805,3882.9,3882.0,2.57597]
[1734301596069,0.7935,3883.0,3881.7,0.00586799]
[1734301596218,0.7935,3883.0,3881.9,2.57604]
[1734301597780,0.7935,3883.0,3881.7,0.00586799]
[1734301598062,0.52012645,3883.6,3881.7,0.00586799]
[1734301598063,0.77,3882.2,3881.7,0.00586799]
[1734301598281,0.03220412,3882.1,3881.7,0.00586799]
[1734301598424,0.77,3882.2,3881.7,0.00586799]
[1734301598620,0.77,3882.8,3881.7,0.00586799]
[1734301598839,0.03220409,3882.6,3881.7,0.00586799]
[1734301599445,0.03220409,3882.6,3881.7,2.58203799]
[1734301599861,0.03219943,3882.7,3881.7,2.58203799]
[1734301600364,2.57568,3882.5,3881.7,0.00586799]
[1734301600583,0.43424381,3882.4,3881.7,0.00586799]
[1734301601993,0.43424381,3882.4,3881.2,2.5765]
[1734301602291,0.43424381,3882.4,3880.8,0.7734]
[1734301602292,0.40204069,3882.4,3880.8,0.7734]
[1734301602487,0.77,3882.2,3880.8,0.7734]
[1734301602658,0.03220515,3882.1,3880.8,3.7964762]
[1734301602867,0.03220515,3882.1,3880.9,2.57668]
[1734301603189,0.03220515,3882.1,3880.8,0.4463162]
[1734301603392,2.60813515,3882.1,3880.7,2.7399469]
[1734301604092,0.77,3882.2,3881.2,2.5765]
[1734301604093,0.03220775,3882.0,3881.2,2.5765]
[1734301604291,0.77,3882.2,3881.2,2.5765]
[1734301605162,3.3459,3882.2,3880.9,2.5767]
[1734301605364,0.03220578,3882.1,3880.9,2.5767]
[1734301607500,0.03220578,3882.1,3880.7,0.1631169]
[1734301607501,2.57619,3881.7,3880.7,0.1631169]
[1734301607794,0.77,3881.5,3880.7,0.1631169]
[1734301607968,0.03221255,3881.4,3880.7,0.1631169]
[1734301608373,0.80221251,3881.5,3880.7,0.1631169]
[1734301609369,1.14005976,3881.5,3880.7,0.1631169]
[1734301609763,0.77,3881.5,3880.7,0.1631169]
[1734301610912,0.03221085,3881.4,3880.7,0.1631169]
[1734301611426,0.80221115,3881.5,3880.7,0.1631169]
[1734301611561,0.7955,3883.2,3881.2,2.15353923]
[1734301611762,0.51747274,3883.0,3882.2,2.57585]
[1734301612197,0.03219817,3883.0,3881.9,2.57601]
[1734301612607,0.50687563,3883.1,3882.1,2.5759]
[1734301612789,0.63711319,3883.1,3882.1,2.5759]
[1734301613713,0.50687563,3883.1,3881.6,1.3657]
[1734301613867,0.50687563,3883.1,3882.0,2.57599]
[1734301614067,0.50687563,3883.1,3882.6,2.57557]
[1734301614315,0.50687563,3883.1,3881.9,2.15353923]
[1734301614607,0.50687563,3883.1,3882.6,2.57557]
[1734301614788,0.50687563,3883.1,3882.1,2.57592]
[1734301614789,0.7955,3883.2,3882.7,2.57552]
[1734301615405,0.7955,3883.2,3882.3,2.57579]
[1734301615576,0.7955,3883.2,3882.0,2.79129392]
[1734301615780,0.7955,3883.2,3882.5,2.57565]
[1734301616304,0.7955,3883.2,3882.6,2.57557]
[1734301616978,2.94903923,3883.2,3881.1,0.8157]
[1734301617180,2.92143923,3882.7,3881.1,0.8157]
[1734301617375,0.0322016,3882.6,3881.1,0.8157]
[1734301617583,0.0322016,3882.6,3881.3,2.57639]
[1734301617807,0.0322016,3882.6,3881.4,2.57638]
[1734301618101,0.0322016,3882.6,3881.4,0.339208]
[1734301618278,0.0322016,3882.6,3881.4,2.915588]
[1734301618479,2.57567,3882.5,3881.2,2.57648]
[1734301618714,0.03220444,3882.4,3881.2,2.57648]
[1734301619209,3.34369,3882.3,3880.9,2.57666]
[1734301619508,3.34369,3882.3,3880.6,6.09954974]
[1734301619509,0.03220444,3882.2,3880.6,6.09954974]
[1734301619715,0.03220444,3882.2,3880.8,0.62626666]
[1734301621102,0.03220444,3882.2,3881.0,2.57664]
[1734301621313,0.03220444,3882.2,3880.8,0.62626666]
[1734301621471,0.03220444,3882.2,3881.1,2.57658]
[1734301621813,0.03220444,3882.2,3880.4,0.8157]
[1734301621996,2.60807444,3882.2,3880.4,0.8157]
[1734301622222,2.60807444,3882.2,3880.4,3.39269]
[1734301622524,0.03220444,3882.2,3880.4,0.8157]
[1734301622673,2.57595,3882.1,3880.8,2.57675]
[1734301623030,0.7679,3882.3,3880.4,0.8157]
[1734301623031,0.36981348,3882.0,3880.4,0.8157]
[1734301623168,0.8132,3881.9,3880.7,2.7399469]
[1734301623495,0.03220879,3881.8,3880.7,2.7399469]
[1734301623694,2.60834879,3881.8,3880.7,0.1631169]
[1734301623902,0.03220879,3881.8,3880.7,0.1631169]
[1734301624090,0.34214488,3881.7,3880.7,0.1631169]
[1734301624290,0.03221031,3881.6,3880.7,0.1631169]
[1734301624984,0.7841,3881.4,3880.7,0.1631169]
[1734301625198,0.0322147,3881.3,3880.7,0.1631169]
[1734301629529,0.0322147,3881.3,3880.8,2.57678]
[1734301629691,0.0322147,3881.3,3880.7,0.1631169]
[1734301630616,0.0322147,3881.3,3880.7,2.7399669]
[1734301630822,0.0322147,3881.3,3880.7,0.1631169]
[1734301635203,0.0322147,3881.3,3880.7,2.7399669]
[1734301636583,0.0322147,3881.3,3880.7,0.1631169]
[1734301636907,0.0322147,3881.3,3880.8,2.57675]
[1734301637887,0.0322147,3881.3,3880.9,2.5767]
[1734301638923,0.0322147,3881.3,3880.7,0.1631169]
[1734301639134,0.0322147,3881.3,3880.8,2.57677]
[1734301642893,0.0322147,3881.3,3880.7,0.1631169]
[1734301643114,0.89072103,3881.2,3880.7,0.1631169]
[1734301643298,2.60883468,3881.1,3880.7,0.1631169]
[1734301643611,0.89072103,3881.0,3880.7,0.1631169]
[1734301643813,0.03221479,3880.9,3880.7,0.1631169]
[1734301644847,0.03221513,3881.1,3880.7,0.1631169]
[1734301645050,0.38676868,3881.0,3880.7,0.1631169]
[1734301645197,0.0322151,3880.9,3880.7,0.1631169]
[1734301647560,0.52617749,3880.8,3880.7,0.1631169]
[1734301648612,0.0322151,3880.9,3880.7,0.1631169]
[1734301651634,5.60758042,3880.8,3880.7,0.1631169]
[1734301651835,6.67792604,3880.8,3880.7,0.1631169]
[1734301652016,2.57687,3880.7,3879.5,2.57764]
[1734301652362,4.83615049,3880.6,3879.5,2.57764]
[1734301652561,0.89069623,3880.5,3879.5,2.57764]
[1734301652711,0.03222007,3880.4,3879.5,2.57764]
[1734301653416,0.03222007,3880.4,3879.3,2.57776]
[1734301653417,0.40087019,3880.4,3879.3,2.57776]
[1734301655119,0.40087019,3880.4,3878.9,2.578]
[1734301655120,3.03001142,3880.3,3878.9,2.578]
[1734301655419,2.2584358,3880.2,3878.7,2.57816]
[1734301655618,0.89048457,3880.1,3878.7,2.57816]
[1734301655819,2.88999068,3880.0,3878.7,2.57816]
[1734301656216,2.57739,3879.9,3878.7,2.57816]
[1734301656461,0.03222514,3879.8,3878.7,2.57816]
[1734301656670,0.03222514,3879.8,3878.5,0.8127]
[1734301656671,2.60968514,3879.8,3878.6,2.57824]
[1734301657165,0.8038,3879.7,3878.5,0.8127]
[1734301657330,0.0322293,3879.6,3878.5,0.8127]
[1734301657720,0.8038,3879.7,3878.1,0.8127]
[1734301657925,2.57786,3879.2,3878.1,0.8127]
[1734301658135,2.578,3879.0,3877.7,3.39154]
[1734301658353,2.57819,3878.7,3877.7,0.8127]
[1734301658581,0.03223411,3878.6,3877.7,0.8127]
[1734301658876,2.57803,3879.0,3877.7,0.8127]
[1734301659087,2.57812,3878.8,3877.7,0.8127]
[1734301659398,2.5782,3878.7,3877.7,0.8127]
[1734301659685,3.41428542,3878.6,3877.4,5.57902]
[1734301659898,3.41428542,3878.6,3877.2,0.8127]
[1734301659899,0.83603542,3878.6,3877.2,0.8127]
[1734301660779,2.57845,3878.3,3877.2,0.8127]
[1734301660982,0.03223856,3878.2,3877.2,0.8127]
[1734301661148,0.03223998,3878.2,3876.9,0.66990133]
[1734301661477,2.61082999,3878.1,3876.9,0.1631169]
[1734301661643,0.7903,3878.0,3876.9,0.1631169]
[1734301661841,2.57881,3877.8,3876.9,0.1631169]
[1734301662349,0.03224462,3877.7,3876.9,0.1631169]
[1734301662787,2.61110462,3877.7,3876.9,0.1631169]
[1734301662972,0.26111046,3877.6,3876.9,0.1631169]
[1734301663139,2.57905,3877.4,3876.9,0.1631169]
[1734301663481,2.32945,3877.4,3876.9,0.1631169]
[1734301663842,3.369,3878.0,3876.9,0.1631169]
[1734301663843,0.03224799,3877.3,3876.9,0.1631169]
[1734301664097,0.0322441,3877.7,3876.9,0.1631169]
[1734301666580,0.0291426,3877.7,3876.9,0.1631169]
[1734301666788,2.57873,3877.9,3876.9,0.1631169]
[1734301666949,0.03224409,3877.8,3876.9,0.1631169]
[1734301667693,2.57901,3877.5,3876.9,0.1631169]
[1734301667887,0.03224658,3877.4,3876.9,0.1631169]
[1734301668460,0.03224632,3877.8,3876.9,0.1631169]
[1734301669209,2.57892,3877.6,3876.9,0.1631169]
[1734301669409,0.03224631,3877.5,3876.9,0.1631169]
[1734301670589,3.09300299,3877.2,3876.9,0.1631169]
[1734301670800,0.03224787,3877.1,3876.9,0.1631169]
[1734301674880,0.03224854,3877.1,3876.9,0.1631169]
[1734301676092,0.8096,3877.1,3876.9,0.1631169]
[1734301676811,0.51380299,3877.2,3876.9,0.1631169]
[1734301677178,0.03224815,3877.1,3876.9,0.1631169]
[1734301677982,0.03224813,3877.4,3876.9,0.1631169]
[1734301679697,0.55183179,3877.4,3876.9,0.1631169]
[1734301681193,0.94587497,3877.4,3876.9,0.1631169]
[1734301682557,0.42629131,3877.4,3876.9,0.1631169]
[1734301683066,0.42629131,3877.4,3877.0,0.8189]
[1734301683067,0.03224806,3877.4,3877.0,0.8189]
[1734301683778,0.03224806,3877.4,3876.9,0.1631169]
[1734301685959,0.13164476,3877.7,3876.9,0.1631169]
[1734301685960,0.03224833,3877.6,3876.9,0.1631169]
[1734301690914,2.61117833,3877.6,3876.9,0.1631169]
[1734301691122,0.32493396,3877.5,3876.9,0.1631169]
[1734301691410,0.03224895,3877.4,3876.9,0.1631169]
[1734301693306,3.32493396,3877.5,3876.9,0.1631169]
[1734301693476,2.57919,3877.2,3876.9,0.1631169]
[1734301693671,0.03225072,3877.1,3876.9,0.1631169]
[1734301694700,0.03225048,3877.1,3876.9,0.1631169]
[1734301697187,2.71051476,3877.7,3876.9,0.1631169]
[1734301697188,2.61116917,3877.6,3876.9,0.1631169]
[1734301697382,2.57898,3877.5,3876.9,0.1631169]
[1734301697571,0.03224908,3877.4,3876.9,0.1631169]
[1734301697776,2.57918,3877.2,3876.9,0.1631169]
[1734301697978,0.03225118,3877.1,3876.9,0.1631169]
[1734301698194,0.26114312,3877.0,3876.9,0.1631169]
[1734301698695,2.57925,3877.1,3876.9,0.1631169]
[1734301698898,0.03225108,3877.0,3876.9,0.1631169]
[1734301699111,2.61156108,3877.0,3876.9,0.1631169]
[1734301699314,2.57968,3876.5,3875.6,0.8007]
[1734301699474,0.29022257,3876.4,3875.6,0.8007]
[1734301701214,0.03225457,3876.4,3875.6,0.8007]
[1734301701416,0.03225447,3876.6,3875.6,0.8007]
[1734301702217,2.61185447,3876.6,3875.6,0.8007]
[1734301702417,0.89166818,3876.5,3875.6,0.8007]
[1734301702718,0.49034242,3876.4,3875.6,0.8007]
[1734301704417,0.89253954,3876.3,3875.6,0.8007]
[1734301704780,1.07735113,3876.1,3875.2,1.34026738]
[1734301705121,0.03225744,3876.0,3875.2,3.92072738]
[1734301705891,0.92500039,3875.9,3875.2,0.8288]
[1734301706089,0.03225753,3875.9,3875.2,0.8288]
[1734301706320,3.65733113,3876.0,3875.2,0.8288]
[1734301706629,0.92510194,3875.9,3875.2,0.8288]
[1734301706840,0.03225868,3875.9,3875.2,0.8288]
[1734301707502,1.10960964,3876.0,3875.2,0.8288]
[1734301707731,2.2321172,3875.9,3875.2,0.8288]
[1734301707940,0.03225867,3875.8,3875.2,0.8288]
[1734301712519,2.61242867,3875.8,3875.2,0.8288]
[1734301712693,0.03225867,3875.8,3875.2,0.8288]
[1734301714402,3.18975037,3875.9,3875.2,0.8288]
[1734301714795,2.58023,3875.7,3874.5,2.58096]
[1734301714993,0.03226153,3875.6,3874.5,2.58096]
[1734301715344,2.61251153,3875.6,3874.5,2.58096]
[1734301715519,2.61251153,3875.6,3874.4,0.803]
[1734301716111,0.03226153,3875.6,3874.4,0.803]
[1734301716328,2.58035,3875.5,3874.4,0.803]
[1734301716709,0.03226335,3875.4,3874.4,0.803]
[1734301716911,0.13778996,3875.6,3874.4,0.803]
[1734301717100,2.58051,3875.3,3874.4,0.803]
[1734301717304,2.61278475,3875.2,3874.4,0.803]
[1734301717546,0.37507323,3875.2,3874.1,0.7597]
[1734301717699,2.58071,3875.0,3874.1,0.7597]
[1734301718034,0.03226791,3874.9,3874.1,0.7597]
[1734301718337,2.58078,3874.8,3874.1,0.7597]
[1734301718538,0.03226865,3874.7,3874.1,0.7597]
[1734301718740,0.03226865,3874.7,3873.7,0.7597]
[1734301718910,0.03226865,3874.7,3873.7,1.75091985]
[1734301719738,0.03226865,3874.7,3873.7,1.2764032]
[1734301719916,2.58072,3874.9,3873.7,1.2764032]
[1734301720224,0.03227085,3874.9,3873.8,2.58142]
[1734301722130,0.03227085,3874.9,3874.0,2.5813]
[1734301722657,0.03227085,3874.9,3874.3,2.5811]
[1734301722839,1.89265113,3875.4,3874.3,2.5811]
[1734301722840,0.0322662,3875.3,3874.3,2.5811]
[1734301723178,0.59572053,3875.2,3874.3,2.5811]
[1734301723380,0.59572053,3875.2,3873.8,2.58144]
[1734301723381,0.03226616,3875.1,3873.7,1.2764032]
[1734301723972,0.03226616,3875.1,3874.4,2.58098]
[1734301724131,0.8153,3875.4,3874.6,2.58089]
[1734301724132,0.03226495,3875.3,3874.6,2.58089]
[1734301724326,0.03226495,3875.3,3873.7,1.2764032]
[1734301724533,0.14833363,3875.2,3874.0,2.5813]
[1734301724788,0.03226906,3875.1,3874.0,2.5813]
[1734301725954,0.03226903,3875.1,3873.7,0.7597]
[1734301726246,0.27611227,3875.0,3873.7,0.7597]
[1734301726430,0.27611227,3875.0,3873.9,2.58137]
[1734301726631,0.03226917,3874.9,3873.9,2.58137]
[1734301726930,0.03226917,3874.9,3874.0,2.58127]
[1734301727130,0.03226917,3874.9,3873.8,2.58143]
[1734301727546,0.30838845,3874.9,3873.9,2.58135]
[1734301727732,0.032269,3874.8,3874.5,0.7896]
[1734301728058,0.03226411,3875.1,3874.5,0.7896]
[1734301728231,0.03226443,3875.1,3874.5,0.7896]
[1734301728639,2.10951113,3876.0,3874.5,0.7896]
[1734301728640,1.07735113,3876.5,3875.9,2.58004]
[1734301728941,3.22862959,3877.4,3875.2,2.58051]
[1734301728942,1.07735113,3877.6,3877.0,0.7896]
[1734301729249,1.031669,3878.3,3877.0,0.7896]
[1734301729250,0.7532,3878.6,3877.8,2.57875]
[1734301729460,1.07735113,3879.2,3877.9,0.7896]
[1734301729688,0.02892675,3879.3,3877.9,0.7896]
[1734301729888,0.47320735,3879.4,3878.0,0.55]
[1734301730042,2.35871843,3880.0,3878.8,2.57808]
[1734301730043,1.83055113,3880.0,3878.8,2.57808]
[1734301730239,1.83055113,3880.0,3878.3,2.57844]
[1734301730240,0.02892675,3880.1,3878.9,0.8251]
[1734301730544,0.7669,3880.5,3879.3,1.0120861]
[1734301730883,1.29541317,3880.5,3879.3,1.0120861]
[1734301731238,0.12954132,3880.4,3879.3,1.0120861]
[1734301731674,2.73554807,3880.4,3879.3,1.0120861]
[1734301731843,0.15846807,3880.4,3879.3,1.0120861]
[1734301732053,0.15846807,3880.4,3879.3,1.00913597]
[1734301732331,0.12954132,3880.4,3879.3,1.00913597]
[1734301732481,0.44249545,3880.3,3879.3,1.00913597]